[Event "*** SCC Grand Prix: Titled Tuesday Blitz"]
[Site "Chess.com"]
[Date "2020.08.04"]
[Round "2"]
[White "StockholmMissile"]
[Black "j_coca"]
[Result "0-1"]
[WhiteElo "2464"]
[BlackElo "2312"]
[TimeControl "180+1"]
[EndTime "14:02:47 PDT"]
[Termination "j_coca won by resignation"]

1. d4 {[%clk 0:03:00.9]} 1... f5 {[%clk 0:02:53.3]} 2. g3 {[%clk 0:03:00.3]}
2... Nf6 {[%clk 0:02:53.1]} 3. Bg2 {[%clk 0:03:00.7]} 3... g6 {[%clk 0:02:53.5]}
4. Nh3 {[%clk 0:03:00.8]} 4... Bg7 {[%clk 0:02:54]} 5. O-O {[%clk 0:03:00.6]}
5... O-O {[%clk 0:02:54.4]} 6. Nf4 {[%clk 0:02:58.4]} 6... d6 {[%clk 0:02:54.2]}
7. d5 {[%clk 0:02:49]} 7... c6 {[%clk 0:02:49.3]} 8. c4 {[%clk 0:02:45.6]} 8...
Kh8 {[%clk 0:02:48.6]} 9. Nc3 {[%clk 0:02:43]} 9... a6 {[%clk 0:02:48.1]} 10. a4
{[%clk 0:02:34]} 10... Qe8 {[%clk 0:02:47.6]} 11. a5 {[%clk 0:02:30.9]} 11... g5
{[%clk 0:02:46.4]} 12. Nd3 {[%clk 0:02:27.1]} 12... h6 {[%clk 0:02:46.4]} 13. e4
{[%clk 0:02:19.6]} 13... fxe4 {[%clk 0:02:43.1]} 14. Nxe4 {[%clk 0:02:18.8]}
14... Nxe4 {[%clk 0:02:38.5]} 15. Bxe4 {[%clk 0:02:19.7]} 15... cxd5 {[%clk
0:02:38.8]} 16. cxd5 {[%clk 0:02:18.9]} 16... Nd7 {[%clk 0:02:39]} 17. Be3
{[%clk 0:02:11.1]} 17... Nf6 {[%clk 0:02:38.6]} 18. Bg2 {[%clk 0:02:10.5]} 18...
Bg4 {[%clk 0:02:38.1]} 19. Qb3 {[%clk 0:02:06.2]} 19... Qd7 {[%clk 0:02:34]} 20.
Rfe1 {[%clk 0:02:00.3]} 20... Rac8 {[%clk 0:02:30.2]} 21. Bd4 {[%clk 0:01:57.9]}
21... Bh3 {[%clk 0:02:26.7]} 22. Bh1 {[%clk 0:01:57.3]} 22... Ng4 {[%clk
0:02:23.1]} 23. Bxg7+ {[%clk 0:01:54.8]} 23... Kxg7 {[%clk 0:02:24]} 24. Re2
{[%clk 0:01:47.2]} 24... Rf7 {[%clk 0:02:22.9]} 25. Rae1 {[%clk 0:01:44]} 25...
Rc7 {[%clk 0:02:23]} 26. Qb4 {[%clk 0:01:28.1]} 26... Qf5 {[%clk 0:02:20.7]} 27.
Qd4+ {[%clk 0:01:25]} 27... Kg8 {[%clk 0:02:16.9]} 28. f3 {[%clk 0:01:19.4]}
28... Nf6 {[%clk 0:02:11.4]} 29. Nf2 {[%clk 0:01:10.2]} 29... g4 {[%clk
0:02:10.3]} 30. fxg4 {[%clk 0:00:50.9]} 30... Bxg4 {[%clk 0:02:09.1]} 31. Nxg4
{[%clk 0:00:49.1]} 31... Nxg4 {[%clk 0:02:08.5]} 32. Bg2 {[%clk 0:00:37.1]}
32... Ne5 {[%clk 0:02:07.7]} 33. Re4 {[%clk 0:00:18.9]} 33... Rc2 {[%clk
0:01:56.9]} 34. Rf4 {[%clk 0:00:18.3]} 34... Qg5 {[%clk 0:01:40.3]} 35. Rxf7
{[%clk 0:00:16.2]} 35... Kxf7 {[%clk 0:01:41.2]} 36. Qf4+ {[%clk 0:00:11.7]}
36... Qxf4 {[%clk 0:01:39.6]} 37. gxf4 {[%clk 0:00:12.6]} 37... Nd3 {[%clk
0:01:38.6]} 38. Rf1 {[%clk 0:00:09.6]} 38... Nxb2 {[%clk 0:01:37.8]} 39. Bh3
{[%clk 0:00:08.4]} 39... Kf6 {[%clk 0:01:37.2]} 40. Rb1 {[%clk 0:00:07.4]} 40...
Rd2 {[%clk 0:01:35.5]} 41. Be6 {[%clk 0:00:06.5]} 41... h5 {[%clk 0:01:35]} 42.
h3 {[%clk 0:00:05.7]} 42... h4 {[%clk 0:01:35.2]} 43. Kf1 {[%clk 0:00:05.5]}
43... Nc4 {[%clk 0:01:27.7]} 44. Rxb7 {[%clk 0:00:04.8]} 44... Nxa5 {[%clk
0:01:27]} 45. Ra7 {[%clk 0:00:05.1]} 45... Nc4 {[%clk 0:01:27.5]} 46. Rxa6
{[%clk 0:00:05.4]} 46... Ne3+ {[%clk 0:01:26.4]} 47. Kg1 {[%clk 0:00:03.8]}
47... Rg2+ {[%clk 0:01:26.2]} 48. Kh1 {[%clk 0:00:03.7]} 48... Rf2 {[%clk
0:01:26.6]} 49. Ra8 {[%clk 0:00:03.2]} 49... Rxf4 {[%clk 0:01:25.6]} 50. Rf8+
{[%clk 0:00:03.1]} 50... Ke5 {[%clk 0:01:25.8]} 51. Rh8 {[%clk 0:00:03.7]} 51...
Nf1 {[%clk 0:01:22.1]} 52. Rh5+ {[%clk 0:00:03.1]} 52... Ke4 {[%clk 0:01:22.1]}
53. Kg2 {[%clk 0:00:03.4]} 53... Ng3 {[%clk 0:01:18.7]} 54. Rxh4 {[%clk
0:00:02.3]} 54... Rxh4 {[%clk 0:01:18.3]} 55. Kxg3 {[%clk 0:00:02.8]} 55... Rh6
{[%clk 0:01:16.8]} 56. Kg4 {[%clk 0:00:02.8]} 56... Ke5 {[%clk 0:01:17.2]} 57.
h4 {[%clk 0:00:02.3]} 57... Rxe6 {[%clk 0:01:16.7]} 58. dxe6 {[%clk 0:00:01.4]}
58... Kxe6 {[%clk 0:01:17.6]} 59. Kg5 {[%clk 0:00:01.7]} 59... Kf7 {[%clk
0:01:18]} 60. Kf5 {[%clk 0:00:01.9]} 60... Kg7 {[%clk 0:01:18.1]} 61. Ke6 {[%clk
0:00:01.7]} 61... Kh6 {[%clk 0:01:18]} 62. Kxe7 {[%clk 0:00:02.1]} 62... d5
{[%clk 0:01:18]} 0-1

[Event "*** SCC Grand Prix: Titled Tuesday Blitz"]
[Site "Chess.com"]
[Date "2020.08.04"]
[Round "2"]
[White "KingCrusher275"]
[Black "Martins-BR"]
[Result "0-1"]
[WhiteElo "2410"]
[BlackElo "2213"]
[TimeControl "180+1"]
[EndTime "14:02:47 PDT"]
[Termination "Martins-BR won by resignation"]

1. d4 {[%clk 0:03:00.9]} 1... f5 {[%clk 0:02:58.7]} 2. c4 {[%clk 0:03:01]} 2...
Nf6 {[%clk 0:02:57.7]} 3. Nf3 {[%clk 0:03:01.2]} 3... g6 {[%clk 0:02:56.4]} 4.
g3 {[%clk 0:03:00.8]} 4... Bg7 {[%clk 0:02:56.2]} 5. Bg2 {[%clk 0:03:01.4]} 5...
O-O {[%clk 0:02:56.4]} 6. O-O {[%clk 0:03:02]} 6... d6 {[%clk 0:02:56.5]} 7. Nc3
{[%clk 0:03:01.7]} 7... c6 {[%clk 0:02:56.3]} 8. b3 {[%clk 0:02:59.4]} 8... Na6
{[%clk 0:02:49.9]} 9. Bb2 {[%clk 0:02:59.1]} 9... Qc7 {[%clk 0:02:49.6]} 10. Re1
{[%clk 0:02:37.9]} 10... e5 {[%clk 0:02:48.4]} 11. dxe5 {[%clk 0:02:16.2]} 11...
dxe5 {[%clk 0:02:49.3]} 12. e4 {[%clk 0:02:16.5]} 12... f4 {[%clk 0:02:48.2]}
13. a3 {[%clk 0:02:02.6]} 13... Nh5 {[%clk 0:02:43.3]} 14. Qc2 {[%clk
0:01:55.6]} 14... fxg3 {[%clk 0:02:37.5]} 15. hxg3 {[%clk 0:01:54.7]} 15... Bg4
{[%clk 0:02:36.1]} 16. Nh2 {[%clk 0:01:43.3]} 16... Be6 {[%clk 0:02:31.2]} 17.
Rad1 {[%clk 0:01:42.4]} 17... Rad8 {[%clk 0:02:27]} 18. Qe2 {[%clk 0:01:35.2]}
18... Qc8 {[%clk 0:02:18.9]} 19. Bf3 {[%clk 0:01:28]} 19... Nf6 {[%clk
0:02:16.1]} 20. Nf1 {[%clk 0:01:27.4]} 20... Bg4 {[%clk 0:02:10.8]} 21. Rxd8
{[%clk 0:01:13]} 21... Rxd8 {[%clk 0:02:09.5]} 22. b4 {[%clk 0:01:10.7]} 22...
Rf8 {[%clk 0:02:04.2]} 23. Ne3 {[%clk 0:00:58.2]} 23... Bxf3 {[%clk 0:01:59.2]}
24. Qxf3 {[%clk 0:00:59.1]} 24... Nc7 {[%clk 0:01:54]} 25. Qe2 {[%clk
0:00:54.8]} 25... Ne6 {[%clk 0:01:52.6]} 26. Nc2 {[%clk 0:00:39.9]} 26... Nd4
{[%clk 0:01:50.5]} 27. Nxd4 {[%clk 0:00:39.5]} 27... exd4 {[%clk 0:01:50]} 28.
Nd1 {[%clk 0:00:39.6]} 28... Qh3 {[%clk 0:01:37.1]} 29. Qf1 {[%clk 0:00:27.9]}
29... Qh5 {[%clk 0:01:33.1]} 30. Qg2 {[%clk 0:00:19]} 30... Ng4 {[%clk
0:01:31.4]} 31. f3 {[%clk 0:00:18.9]} 31... Ne5 {[%clk 0:01:29.7]} 32. g4 {[%clk
0:00:16.5]} 32... Qh4 {[%clk 0:01:23.6]} 33. Rf1 {[%clk 0:00:17]} 33... Nxc4
{[%clk 0:01:20.4]} 34. Ba1 {[%clk 0:00:14.5]} 34... Rd8 {[%clk 0:01:14.6]} 35.
Qa2 {[%clk 0:00:08.1]} 35... b5 {[%clk 0:01:12]} 36. a4 {[%clk 0:00:08.5]} 36...
Qg3+ {[%clk 0:01:05.5]} 37. Kh1 {[%clk 0:00:08]} 37... Be5 {[%clk 0:00:50.7]}
38. axb5 {[%clk 0:00:07.7]} 38... cxb5 {[%clk 0:00:49.8]} 39. Qg2 {[%clk
0:00:06.2]} 39... Qh4+ {[%clk 0:00:43.3]} 40. Kg1 {[%clk 0:00:06.3]} 40... g5
{[%clk 0:00:38]} 41. Rf2 {[%clk 0:00:05.4]} 41... Ne3 {[%clk 0:00:32.6]} 42.
Nxe3 {[%clk 0:00:05.1]} 42... dxe3 {[%clk 0:00:32.2]} 43. Rf1 {[%clk 0:00:05.1]}
43... Rd2 {[%clk 0:00:25.1]} 0-1

[Event "*** SCC Grand Prix: Titled Tuesday Blitz"]
[Site "Chess.com"]
[Date "2020.08.04"]
[Round "2"]
[White "TigrVShlyape"]
[Black "davidkalashian"]
[Result "0-1"]
[WhiteElo "2852"]
[BlackElo "2581"]
[TimeControl "180+1"]
[EndTime "14:02:48 PDT"]
[Termination "davidkalashian won on time"]

1. d4 {[%clk 0:03:00.9]} 1... Nf6 {[%clk 0:02:58.3]} 2. Nf3 {[%clk 0:03:00]}
2... e6 {[%clk 0:02:56.8]} 3. Bf4 {[%clk 0:02:59.5]} 3... b6 {[%clk 0:02:54.2]}
4. e3 {[%clk 0:02:58.5]} 4... Bb7 {[%clk 0:02:51.5]} 5. Nbd2 {[%clk 0:02:55.9]}
5... Be7 {[%clk 0:02:51.8]} 6. h3 {[%clk 0:02:55.6]} 6... O-O {[%clk 0:02:52.1]}
7. a4 {[%clk 0:02:54.3]} 7... a6 {[%clk 0:02:51.3]} 8. Bd3 {[%clk 0:02:53.5]}
8... c5 {[%clk 0:02:51.7]} 9. O-O {[%clk 0:02:53.1]} 9... cxd4 {[%clk
0:02:50.6]} 10. exd4 {[%clk 0:02:52.9]} 10... d6 {[%clk 0:02:50.8]} 11. Bh2
{[%clk 0:02:51.7]} 11... Nbd7 {[%clk 0:02:50.2]} 12. Re1 {[%clk 0:02:51.9]}
12... Re8 {[%clk 0:02:49.1]} 13. a5 {[%clk 0:02:50.1]} 13... b5 {[%clk
0:02:48.5]} 14. c4 {[%clk 0:02:46.1]} 14... bxc4 {[%clk 0:02:47.5]} 15. Nxc4
{[%clk 0:02:46.2]} 15... Nf8 {[%clk 0:02:45.5]} 16. Nb6 {[%clk 0:02:42.9]} 16...
Rb8 {[%clk 0:02:38.8]} 17. Nd2 {[%clk 0:02:42.8]} 17... Ng6 {[%clk 0:02:32.6]}
18. b4 {[%clk 0:02:21.8]} 18... Nd5 {[%clk 0:02:27.1]} 19. Nxd5 {[%clk
0:02:20.4]} 19... Bxd5 {[%clk 0:02:28]} 20. Rb1 {[%clk 0:02:20.7]} 20... Bf6
{[%clk 0:02:16.4]} 21. Bxa6 {[%clk 0:02:08.7]} 21... Bxd4 {[%clk 0:02:14.6]} 22.
Ne4 {[%clk 0:02:01.8]} 22... e5 {[%clk 0:01:20.9]} 23. Bf1 {[%clk 0:01:38.9]}
23... Ba8 {[%clk 0:01:11.4]} 24. Qd2 {[%clk 0:01:31.5]} 24... Nh4 {[%clk
0:01:03.1]} 25. b5 {[%clk 0:01:17]} 25... f5 {[%clk 0:00:58.2]} 26. Ng3 {[%clk
0:00:36.4]} 26... f4 {[%clk 0:00:56.9]} 27. Ne4 {[%clk 0:00:35.7]} 27... d5
{[%clk 0:00:57.1]} 28. Qa2 {[%clk 0:00:30.8]} 28... Kh8 {[%clk 0:00:51.1]} 29.
Nd2 {[%clk 0:00:29.7]} 29... Bc3 {[%clk 0:00:45.7]} 30. a6 {[%clk 0:00:24.9]}
30... Bd4 {[%clk 0:00:44.8]} 31. Nb3 {[%clk 0:00:23.5]} 31... Bb6 {[%clk
0:00:42.6]} 32. Rbc1 {[%clk 0:00:22.5]} 32... Qg5 {[%clk 0:00:38.7]} 33. Kh1
{[%clk 0:00:20.5]} 33... e4 {[%clk 0:00:37.5]} 34. Nc5 {[%clk 0:00:19.6]} 34...
Rbc8 {[%clk 0:00:31.5]} 35. Nd7 {[%clk 0:00:18.7]} 35... Rxc1 {[%clk 0:00:31.2]}
36. Rxc1 {[%clk 0:00:18.5]} 36... f3 {[%clk 0:00:31.5]} 37. g3 {[%clk
0:00:04.5]} 37... Qxc1 {[%clk 0:00:30]} 38. Kg1 {[%clk 0:00:03.2]} 38... e3
{[%clk 0:00:27.7]} 0-1

[Event "*** SCC Grand Prix: Titled Tuesday Blitz"]
[Site "Chess.com"]
[Date "2020.08.04"]
[Round "2"]
[White "bascheyaro"]
[Black "Mbneu"]
[Result "1-0"]
[WhiteElo "2710"]
[BlackElo "2252"]
[TimeControl "180+1"]
[EndTime "14:02:50 PDT"]
[Termination "bascheyaro won on time"]

1. d4 {[%clk 0:03:00.9]} 1... Nf6 {[%clk 0:02:58.9]} 2. Nc3 {[%clk 0:03:01.2]}
2... b6 {[%clk 0:02:57.1]} 3. e4 {[%clk 0:03:01]} 3... Bb7 {[%clk 0:02:56.4]} 4.
e5 {[%clk 0:02:59.8]} 4... Nd5 {[%clk 0:02:55.7]} 5. Nxd5 {[%clk 0:03:00.1]}
5... Bxd5 {[%clk 0:02:55.1]} 6. c4 {[%clk 0:03:00.5]} 6... Bb7 {[%clk
0:02:54.4]} 7. Nf3 {[%clk 0:02:57]} 7... e6 {[%clk 0:02:53.8]} 8. a3 {[%clk
0:02:56]} 8... Be7 {[%clk 0:02:49.6]} 9. Bd3 {[%clk 0:02:55.8]} 9... f5 {[%clk
0:02:45.3]} 10. exf6 {[%clk 0:02:53.7]} 10... Bxf6 {[%clk 0:02:44.8]} 11. O-O
{[%clk 0:02:51.8]} 11... O-O {[%clk 0:02:43.8]} 12. d5 {[%clk 0:02:36.8]} 12...
exd5 {[%clk 0:02:24.8]} 13. cxd5 {[%clk 0:02:36.5]} 13... d6 {[%clk 0:02:25.2]}
14. Re1 {[%clk 0:02:13.5]} 14... Nd7 {[%clk 0:02:22.1]} 15. Bf5 {[%clk
0:02:13.6]} 15... Ne5 {[%clk 0:02:17.4]} 16. Be6+ {[%clk 0:02:11.6]} 16... Kh8
{[%clk 0:02:16.3]} 17. Nd4 {[%clk 0:02:11.7]} 17... c6 {[%clk 0:01:59]} 18. f4
{[%clk 0:01:48.9]} 18... cxd5 {[%clk 0:01:46.3]} 19. fxe5 {[%clk 0:01:48.6]}
19... dxe5 {[%clk 0:01:47.2]} 20. Nc2 {[%clk 0:01:39.7]} 20... Qd6 {[%clk
0:01:24.6]} 21. Bh3 {[%clk 0:01:37.8]} 21... d4 {[%clk 0:01:18.6]} 22. Ne3
{[%clk 0:01:35.1]} 22... e4 {[%clk 0:01:09.9]} 23. Nf5 {[%clk 0:01:19]} 23...
Qe5 {[%clk 0:01:09]} 24. b3 {[%clk 0:01:04.2]} 24... e3 {[%clk 0:01:04]} 25. Bb2
{[%clk 0:01:04.2]} 25... Rad8 {[%clk 0:01:03]} 26. Nxe3 {[%clk 0:00:39.9]} 26...
dxe3 {[%clk 0:00:18.2]} 27. Bxe5 {[%clk 0:00:39.6]} 27... Rxd1 {[%clk
0:00:15.2]} 28. Raxd1 {[%clk 0:00:40.5]} 28... Bxe5 {[%clk 0:00:14]} 29. Rxe3
{[%clk 0:00:40.6]} 29... Bb2 {[%clk 0:00:11.8]} 30. b4 {[%clk 0:00:36.3]} 30...
h6 {[%clk 0:00:10.5]} 31. Be6 {[%clk 0:00:22.3]} 31... Ba6 {[%clk 0:00:09.6]}
32. h3 {[%clk 0:00:19.8]} 32... Rf6 {[%clk 0:00:08.3]} 33. Bg4 {[%clk
0:00:19.2]} 33... Kh7 {[%clk 0:00:07.4]} 34. Bf3 {[%clk 0:00:18.4]} 34... Bc4
{[%clk 0:00:05.3]} 35. Re4 {[%clk 0:00:16.9]} 35... b5 {[%clk 0:00:04.7]} 36.
Re8 {[%clk 0:00:16.6]} 36... Kg6 {[%clk 0:00:04.1]} 37. Rd7 {[%clk 0:00:15.5]}
1-0

[Event "*** SCC Grand Prix: Titled Tuesday Blitz"]
[Site "Chess.com"]
[Date "2020.08.04"]
[Round "2"]
[White "wild_cat99"]
[Black "BillCoe"]
[Result "0-1"]
[WhiteElo "2682"]
[BlackElo "2139"]
[TimeControl "180+1"]
[EndTime "14:02:51 PDT"]
[Termination "BillCoe won by resignation"]

1. Nf3 {[%clk 0:03:00.9]} 1... e6 {[%clk 0:02:59.2]} 2. e3 {[%clk 0:03:00.7]}
2... f5 {[%clk 0:02:58.9]} 3. c4 {[%clk 0:03:00.5]} 3... Nf6 {[%clk 0:02:59.4]}
4. b3 {[%clk 0:02:57.3]} 4... Be7 {[%clk 0:02:59.2]} 5. Bb2 {[%clk 0:02:57.7]}
5... O-O {[%clk 0:02:59.5]} 6. d4 {[%clk 0:02:57.5]} 6... d6 {[%clk 0:02:59.8]}
7. Bd3 {[%clk 0:02:57.6]} 7... Qe8 {[%clk 0:02:59.5]} 8. Nbd2 {[%clk 0:02:51.5]}
8... Qh5 {[%clk 0:02:58.8]} 9. O-O {[%clk 0:02:47.7]} 9... b6 {[%clk 0:02:58.5]}
10. e4 {[%clk 0:02:43]} 10... Bb7 {[%clk 0:02:46.9]} 11. exf5 {[%clk 0:02:23.2]}
11... exf5 {[%clk 0:02:46.1]} 12. d5 {[%clk 0:02:23.4]} 12... Nbd7 {[%clk
0:02:41.4]} 13. Re1 {[%clk 0:02:19.9]} 13... Rae8 {[%clk 0:02:39.5]} 14. Nf1
{[%clk 0:02:19.7]} 14... f4 {[%clk 0:02:25.8]} 15. Qd2 {[%clk 0:02:10]} 15...
Ng4 {[%clk 0:02:18.4]} 16. h3 {[%clk 0:02:03.8]} 16... Nge5 {[%clk 0:02:17.4]}
17. N1h2 {[%clk 0:01:43]} 17... Nxf3+ {[%clk 0:02:09.1]} 18. Nxf3 {[%clk
0:01:43.9]} 18... g5 {[%clk 0:01:33.7]} 19. Nd4 {[%clk 0:01:25.1]} 19... Nc5
{[%clk 0:01:22.2]} 20. Bf5 {[%clk 0:01:12.7]} 20... Bf6 {[%clk 0:01:14.1]} 21.
Bg4 {[%clk 0:01:10.1]} 21... Qg6 {[%clk 0:01:04.4]} 22. Bf5 {[%clk 0:01:03]}
22... Qg7 {[%clk 0:01:03.6]} 23. b4 {[%clk 0:00:49.7]} 23... Na4 {[%clk
0:00:42.9]} 24. Ne6 {[%clk 0:00:48.3]} 24... Rxe6 {[%clk 0:00:42.6]} 25. Bxe6+
{[%clk 0:00:47.8]} 25... Kh8 {[%clk 0:00:42.9]} 26. Bxf6 {[%clk 0:00:34.2]}
26... Qxf6 {[%clk 0:00:43.8]} 27. Qc2 {[%clk 0:00:33.9]} 27... b5 {[%clk
0:00:33.2]} 28. cxb5 {[%clk 0:00:33.9]} 28... Nb6 {[%clk 0:00:33.5]} 29. Qxc7
{[%clk 0:00:33.8]} 29... Bxd5 {[%clk 0:00:32.8]} 30. Bxd5 {[%clk 0:00:18.3]}
30... Nxd5 {[%clk 0:00:33.7]} 31. Qxa7 {[%clk 0:00:18.5]} 31... f3 {[%clk
0:00:32.8]} 32. g3 {[%clk 0:00:14.7]} 32... Qh6 {[%clk 0:00:25.9]} 33. Kh2
{[%clk 0:00:14.5]} 33... g4 {[%clk 0:00:13]} 34. Qd4+ {[%clk 0:00:14.4]} 34...
Qg7 {[%clk 0:00:11.9]} 35. Qxd5 {[%clk 0:00:10.5]} 35... Qh6 {[%clk 0:00:07.9]}
36. Qe6 {[%clk 0:00:10]} 36... Qxh3+ {[%clk 0:00:07.6]} 0-1

[Event "*** SCC Grand Prix: Titled Tuesday Blitz"]
[Site "Chess.com"]
[Date "2020.08.04"]
[Round "2"]
[White "Fortitudine"]
[Black "Lucas_Tomiello"]
[Result "0-1"]
[WhiteElo "2252"]
[BlackElo "2457"]
[TimeControl "180+1"]
[EndTime "14:02:53 PDT"]
[Termination "Lucas_Tomiello won by resignation"]

1. d4 {[%clk 0:03:00.9]} 1... Nf6 {[%clk 0:03:00.2]} 2. Nc3 {[%clk 0:03:00.7]}
2... d5 {[%clk 0:03:00.1]} 3. Bg5 {[%clk 0:03:00.2]} 3... Nbd7 {[%clk
0:02:59.8]} 4. Nf3 {[%clk 0:02:59.8]} 4... g6 {[%clk 0:03:00]} 5. Qd2 {[%clk
0:02:57.7]} 5... Bg7 {[%clk 0:02:58.6]} 6. Bh6 {[%clk 0:02:57.8]} 6... O-O
{[%clk 0:02:54.9]} 7. Bxg7 {[%clk 0:02:57.3]} 7... Kxg7 {[%clk 0:02:55.8]} 8. e3
{[%clk 0:02:57.2]} 8... c5 {[%clk 0:02:54.6]} 9. Bd3 {[%clk 0:02:51.9]} 9... e6
{[%clk 0:02:44.9]} 10. O-O {[%clk 0:02:48.8]} 10... b6 {[%clk 0:02:35.8]} 11.
Rfe1 {[%clk 0:02:46.4]} 11... Bb7 {[%clk 0:02:35.1]} 12. e4 {[%clk 0:02:25.9]}
12... cxd4 {[%clk 0:02:25.4]} 13. Nxd4 {[%clk 0:02:20.9]} 13... e5 {[%clk
0:02:16]} 14. Nf3 {[%clk 0:02:04.7]} 14... d4 {[%clk 0:02:14.1]} 15. Nd5 {[%clk
0:02:03.3]} 15... Nxd5 {[%clk 0:02:11.5]} 16. exd5 {[%clk 0:02:04.2]} 16... f6
{[%clk 0:02:05.4]} 17. Bc4 {[%clk 0:01:50.4]} 17... Rc8 {[%clk 0:01:59.6]} 18.
Bb3 {[%clk 0:01:50]} 18... Nc5 {[%clk 0:01:59.3]} 19. c4 {[%clk 0:01:47.5]}
19... dxc3 {[%clk 0:01:42.1]} 20. bxc3 {[%clk 0:01:47.3]} 20... Qd6 {[%clk
0:01:39.1]} 21. c4 {[%clk 0:01:44.6]} 21... Nd7 {[%clk 0:01:28.2]} 22. Qb2
{[%clk 0:01:32.6]} 22... Rc7 {[%clk 0:01:25.6]} 23. Nd2 {[%clk 0:01:32.1]} 23...
Nc5 {[%clk 0:00:49.7]} 24. Ne4 {[%clk 0:01:24.6]} 24... Nxe4 {[%clk 0:00:49.8]}
25. Rxe4 {[%clk 0:01:25.5]} 25... Rfc8 {[%clk 0:00:49.9]} 26. Rae1 {[%clk
0:01:22.3]} 26... Kg8 {[%clk 0:00:29.4]} 27. Kh1 {[%clk 0:00:53.1]} 27... Ba6
{[%clk 0:00:23.4]} 28. f4 {[%clk 0:00:49.2]} 28... Bxc4 {[%clk 0:00:20.4]} 29.
fxe5 {[%clk 0:00:40.1]} 29... fxe5 {[%clk 0:00:20.9]} 30. Rxe5 {[%clk
0:00:36.4]} 30... Bxb3 {[%clk 0:00:19.3]} 31. Qxb3 {[%clk 0:00:31.2]} 31... Qxe5
{[%clk 0:00:14.9]} 32. d6+ {[%clk 0:00:29.5]} 32... Kg7 {[%clk 0:00:15.4]} 0-1

[Event "*** SCC Grand Prix: Titled Tuesday Blitz"]
[Site "Chess.com"]
[Date "2020.08.04"]
[Round "2"]
[White "Lagmantr"]
[Black "penguingm1"]
[Result "1-0"]
[WhiteElo "2636"]
[BlackElo "2941"]
[TimeControl "180+1"]
[EndTime "14:02:56 PDT"]
[Termination "Lagmantr won by checkmate"]

1. e4 {[%clk 0:03:00.9]} 1... e5 {[%clk 0:02:59]} 2. Nf3 {[%clk 0:03:00.5]} 2...
Nc6 {[%clk 0:02:59.5]} 3. Nc3 {[%clk 0:03:00.9]} 3... Nf6 {[%clk 0:02:54.2]} 4.
Be2 {[%clk 0:03:01]} 4... d5 {[%clk 0:02:53]} 5. exd5 {[%clk 0:03:01.9]} 5...
Nxd5 {[%clk 0:02:53.9]} 6. O-O {[%clk 0:03:02.4]} 6... Nxc3 {[%clk 0:02:53.9]}
7. bxc3 {[%clk 0:03:03.3]} 7... Bd6 {[%clk 0:02:54.3]} 8. d4 {[%clk 0:03:03.2]}
8... exd4 {[%clk 0:02:47.7]} 9. cxd4 {[%clk 0:03:04.1]} 9... O-O {[%clk
0:02:48.2]} 10. c3 {[%clk 0:03:03]} 10... Bf5 {[%clk 0:02:47.7]} 11. Bd3 {[%clk
0:02:59.6]} 11... Qd7 {[%clk 0:02:43.6]} 12. Rb1 {[%clk 0:02:51.6]} 12... Rab8
{[%clk 0:02:41.7]} 13. Rb5 {[%clk 0:02:49.2]} 13... Ne7 {[%clk 0:02:08]} 14. Re1
{[%clk 0:02:46.1]} 14... Bxd3 {[%clk 0:01:54.7]} 15. Qxd3 {[%clk 0:02:47]} 15...
c5 {[%clk 0:01:54.1]} 16. Rb2 {[%clk 0:00:50.8]} 16... cxd4 {[%clk 0:01:37.3]}
17. Nxd4 {[%clk 0:00:46.4]} 17... Ng6 {[%clk 0:01:21.1]} 18. Rbe2 {[%clk
0:00:41.8]} 18... a6 {[%clk 0:01:12.1]} 19. h3 {[%clk 0:00:40.4]} 19... Rbd8
{[%clk 0:01:11.3]} 20. Qf3 {[%clk 0:00:31.6]} 20... Bc5 {[%clk 0:01:03]} 21. Bg5
{[%clk 0:00:28.9]} 21... Rc8 {[%clk 0:00:56.5]} 22. Nf5 {[%clk 0:00:22.5]} 22...
Qc6 {[%clk 0:00:55]} 23. Qg4 {[%clk 0:00:16.7]} 23... Rfe8 {[%clk 0:00:46.8]}
24. h4 {[%clk 0:00:11.8]} 24... f6 {[%clk 0:00:15.3]} 25. Bc1 {[%clk 0:00:09.3]}
25... Qc7 {[%clk 0:00:11.3]} 26. Rxe8+ {[%clk 0:00:07.7]} 26... Rxe8 {[%clk
0:00:11.8]} 27. Rxe8+ {[%clk 0:00:08.5]} 27... Kf7 {[%clk 0:00:12.7]} 28. Re1
{[%clk 0:00:08.6]} 28... Ba7 {[%clk 0:00:13.3]} 29. Qe4 {[%clk 0:00:07.9]} 29...
Ne5 {[%clk 0:00:08.2]} 30. Bf4 {[%clk 0:00:07.1]} 30... Qc5 {[%clk 0:00:07.3]}
31. Nd4 {[%clk 0:00:07.1]} 31... Bb8 {[%clk 0:00:05.6]} 32. Bxe5 {[%clk
0:00:06.7]} 32... Bxe5 {[%clk 0:00:06]} 33. Nf3 {[%clk 0:00:07.1]} 33... Qxc3
{[%clk 0:00:04.3]} 34. Nxe5+ {[%clk 0:00:07]} 34... fxe5 {[%clk 0:00:05.2]} 35.
Qxe5 {[%clk 0:00:07.2]} 35... Qb4 {[%clk 0:00:05.7]} 36. Qe8+ {[%clk 0:00:07.2]}
36... Kf6 {[%clk 0:00:05.6]} 37. Qe6# {[%clk 0:00:07.5]} 1-0